[Event "Titled Tuesday Blitz July 4 Late 2023"]
[White "Estrada Nieto, Julian"]
[Black "Andrej2004"]
[WhiteFideId "5101018"]
[WhiteElo "2560"]
[BlackElo "2660"]
[Result "0-1"]
[Round "4"]
[TimeControl "180+2"]
[Date "2023.07.04"]
[WhiteClock "0:00:00"]
[BlackClock "0:00:46"]
[Board "61"]

1. e4 {[%clk 0:03:00]}  b6 {[%clk 0:03:00]} 2. d4 {[%clk 0:02:59]}  Bb7 {[%clk 0:03:01]} 3. Nc3 {[%clk 0:02:59]}  g6 {[%clk 0:03:00]} 4. Nf3 {[%clk 0:02:59]}  d6 {[%clk 0:03:01]} 5. Bc4 {[%clk 0:02:48]}  h6 {[%clk 0:03:00]} 6. O-O {[%clk 0:02:46]}  Bg7 {[%clk 0:03:00]} 7. Qe2 {[%clk 0:02:44]}  e5 {[%clk 0:03:00]} 8. dxe5 {[%clk 0:02:40]}  dxe5 {[%clk 0:02:59]} 9. Rd1 {[%clk 0:02:40]}  Qe7 {[%clk 0:02:57]} 10. Nd5 {[%clk 0:02:31]}  Bxd5 {[%clk 0:02:54]} 11. Bxd5 {[%clk 0:02:30]}  c6 {[%clk 0:02:54]} 12. Bb3 {[%clk 0:02:30]}  Nf6 {[%clk 0:02:55]} 13. a4 {[%clk 0:02:23]}  O-O {[%clk 0:02:52]} 14. a5 {[%clk 0:02:08]}  Nbd7 {[%clk 0:02:52]} 15. Nh4 {[%clk 0:02:07]}  Kh7 {[%clk 0:02:47]} 16. axb6 {[%clk 0:02:02]}  axb6 {[%clk 0:02:46]} 17. Rxa8 {[%clk 0:02:02]}  Rxa8 {[%clk 0:02:47]} 18. Qc4 {[%clk 0:02:02]}  Ng4 {[%clk 0:02:15]} 19. g3 {[%clk 0:01:32]}  Rf8 {[%clk 0:01:48]} 20. Qxc6 {[%clk 0:01:26]}  Nc5 {[%clk 0:01:45]} 21. f3 {[%clk 0:00:37]}  Nxb3 {[%clk 0:01:23]} 22. cxb3 {[%clk 0:00:34]}  Nf6 {[%clk 0:01:22]} 23. Qxb6 {[%clk 0:00:31]}  Rc8 {[%clk 0:01:20]} 24. Be3 {[%clk 0:00:23]}  Rc2 {[%clk 0:01:19]} 25. Rd2 {[%clk 0:00:22]}  Rc1+ {[%clk 0:01:19]} 26. Kg2 {[%clk 0:00:22]}  Nh5 {[%clk 0:01:18]} 27. Qd6 {[%clk 0:00:15]}  Qb7 {[%clk 0:01:03]} 28. Qd5 {[%clk 0:00:12]}  Qa6 {[%clk 0:01:03]} 29. Qd3 {[%clk 0:00:11]}  Qa1 {[%clk 0:01:02]} 30. Rc2 {[%clk 0:00:07]}  Rd1 {[%clk 0:00:58]} 31. Qe2 {[%clk 0:00:05]}  Bf6 {[%clk 0:00:54]} 32. Rc7 {[%clk 0:00:05]}  Bxh4 {[%clk 0:00:53]} 33. gxh4 {[%clk 0:00:03]}  Kg7 {[%clk 0:00:52]} 34. Kh3 {[%clk 0:00:03]}  Rg1 {[%clk 0:00:50]} 35. Qc4 {[%clk 0:00:01]}  Qf1+ {[%clk 0:00:45]} 36. Qxf1 {[%clk 0:00:01]}  Rxf1 {[%clk 0:00:46]} 37. Kg2 {[%clk 0:00:01]}  Re1 {[%clk 0:00:46]} 38. Rc6 {[%clk 0:00:01]}  Rxe3 {[%clk 0:00:46]} 39. Kf2 {[%clk 0:00:01]}  Rxb3 {[%clk 0:00:46]} 40. Rc5 {[%clk 0:00:02]}  Nf4 {[%clk 0:00:44]} 41. Rxe5 {[%clk 0:00:01]}  Nd3+ {[%clk 0:00:44]} 42. Kg3 {[%clk 0:00:01]}  Nxe5 {[%clk 0:00:45]} 43. h5 {[%clk 0:00:02]}  Rxf3+ {[%clk 0:00:45]} 44. Kg2 {[%clk 0:00:01]}  gxh5 {[%clk 0:00:46]} 45. h4 {[%clk 0:00:01]}  Rb3 {[%clk 0:00:47]} 46. Kf2 {[%clk 0:00:01]}  Kf6 {[%clk 0:00:47]} 47. Ke2 {[%clk 0:00:02]}  Rxb2+ {[%clk 0:00:48]} 48. Ke3 {[%clk 0:00:02]}  Rb4 {[%clk 0:00:48]} 49. Kf4 {[%clk 0:00:02]}  Rxe4+ {[%clk 0:00:46]} 50. Kxe4 {[%clk 0:00:00]}  Ng6 {[%clk 0:00:46]} 0-1


[Site "https://www.chess.com"]

[Event "Titled Tuesday Blitz July 4 Late 2023"]
[White "Martinez Reyes, Pedro Ramon"]
[Black "Guerra Tulcan, Lenin"]
[WhiteFideId "3901807"]
[BlackFideId "3601382"]
[WhiteElo "2501"]
[BlackElo "2653"]
[Result "0-1"]
[Round "4"]
[TimeControl "180+2"]
[Date "2023.07.04"]
[WhiteClock "0:00:19"]
[BlackClock "0:00:09"]
[Board "62"]

1. e4 {[%clk 0:03:00]}  c5 {[%clk 0:03:00]} 2. b3 {[%clk 0:03:00]}  Nc6 {[%clk 0:02:59]} 3. Bb2 {[%clk 0:02:57]}  e6 {[%clk 0:02:59]} 4. Nf3 {[%clk 0:02:52]}  Nf6 {[%clk 0:02:59]} 5. e5 {[%clk 0:02:50]}  Nd5 {[%clk 0:02:58]} 6. Nc3 {[%clk 0:02:45]}  Nxc3 {[%clk 0:02:56]} 7. dxc3 {[%clk 0:02:45]}  d5 {[%clk 0:02:55]} 8. Bd3 {[%clk 0:02:37]}  Be7 {[%clk 0:02:52]} 9. O-O {[%clk 0:02:31]}  O-O {[%clk 0:02:52]} 10. c4 {[%clk 0:02:28]}  d4 {[%clk 0:02:50]} 11. a3 {[%clk 0:02:25]}  Qc7 {[%clk 0:02:46]} 12. Qe2 {[%clk 0:02:24]}  f5 {[%clk 0:02:31]} 13. exf6 {[%clk 0:02:22]}  Bxf6 {[%clk 0:02:32]} 14. Rae1 {[%clk 0:02:14]}  Bd7 {[%clk 0:02:20]} 15. Qe4 {[%clk 0:02:10]}  g6 {[%clk 0:02:17]} 16. Bc1 {[%clk 0:02:09]}  e5 {[%clk 0:02:12]} 17. Bh6 {[%clk 0:02:05]}  Rfe8 {[%clk 0:01:58]} 18. Qd5+ {[%clk 0:02:01]}  Be6 {[%clk 0:01:56]} 19. Qxc5 {[%clk 0:02:00]}  a6 {[%clk 0:01:26]} 20. Bg5 {[%clk 0:01:23]}  b6 {[%clk 0:01:25]} 21. Qxc6 {[%clk 0:01:18]}  Qxc6 {[%clk 0:01:26]} 22. Bxf6 {[%clk 0:01:18]}  Bg4 {[%clk 0:01:25]} 23. Nxe5 {[%clk 0:01:17]}  Qxf6 {[%clk 0:01:25]} 24. Nxg4 {[%clk 0:01:17]}  Qf4 {[%clk 0:01:25]} 25. h3 {[%clk 0:01:12]}  Rxe1 {[%clk 0:01:08]} 26. Rxe1 {[%clk 0:01:13]}  h5 {[%clk 0:01:08]} 27. Nh2 {[%clk 0:00:49]}  Kf7 {[%clk 0:01:04]} 28. Re4 {[%clk 0:00:31]}  Qc1+ {[%clk 0:00:59]} 29. Nf1 {[%clk 0:00:32]}  Rd8 {[%clk 0:00:58]} 30. a4 {[%clk 0:00:31]}  Kf6 {[%clk 0:00:50]} 31. h4 {[%clk 0:00:28]}  g5 {[%clk 0:00:36]} 32. g3 {[%clk 0:00:23]}  Rd6 {[%clk 0:00:24]} 33. Kg2 {[%clk 0:00:20]}  g4 {[%clk 0:00:20]} 34. Rf4+ {[%clk 0:00:20]}  Kg7 {[%clk 0:00:20]} 35. Re4 {[%clk 0:00:20]}  Rf6 {[%clk 0:00:16]} 36. Re7+ {[%clk 0:00:20]}  Kg8 {[%clk 0:00:15]} 37. Re2 {[%clk 0:00:20]}  Kf7 {[%clk 0:00:13]} 38. Nd2 {[%clk 0:00:20]}  Qd1 {[%clk 0:00:10]} 39. Ne4 {[%clk 0:00:19]}  Rf3 {[%clk 0:00:09]} 40. Ng5+ {[%clk 0:00:19]}  Kf6 {[%clk 0:00:09]} 41. Nxf3 {[%clk 0:00:20]}  gxf3+ {[%clk 0:00:10]} 42. Kxf3 {[%clk 0:00:21]}  Qh1+ {[%clk 0:00:10]} 43. Kf4 {[%clk 0:00:21]}  Qh3 {[%clk 0:00:10]} 44. f3 {[%clk 0:00:20]}  Qd7 {[%clk 0:00:09]} 45. Rh2 {[%clk 0:00:18]}  Qd6+ {[%clk 0:00:08]} 46. Ke4 {[%clk 0:00:19]}  Qe5# {[%clk 0:00:09]} 0-1


[Site "https://www.chess.com"]

[Event "Titled Tuesday Blitz July 4 Late 2023"]
[White "only_strong_moves"]
[Black "MKlose11"]
[WhiteElo "2498"]
[BlackElo "2650"]
[Result "0-1"]
[Round "4"]
[TimeControl "180+2"]
[Date "2023.07.04"]
[WhiteClock "0:00:09"]
[BlackClock "0:00:49"]
[Board "63"]

1. e4 {[%clk 0:03:00]}  e6 {[%clk 0:02:59]} 2. d4 {[%clk 0:03:00]}  d5 {[%clk 0:02:59]} 3. Nd2 {[%clk 0:03:00]}  Be7 {[%clk 0:02:59]} 4. Ngf3 {[%clk 0:02:56]}  Nf6 {[%clk 0:02:57]} 5. e5 {[%clk 0:02:56]}  Nfd7 {[%clk 0:02:58]} 6. Bd3 {[%clk 0:02:55]}  c5 {[%clk 0:02:58]} 7. c3 {[%clk 0:02:55]}  Nc6 {[%clk 0:02:59]} 8. O-O {[%clk 0:02:55]}  a5 {[%clk 0:02:59]} 9. h3 {[%clk 0:02:52]}  cxd4 {[%clk 0:02:58]} 10. cxd4 {[%clk 0:02:52]}  Qb6 {[%clk 0:02:59]} 11. Qa4 {[%clk 0:02:44]}  Qb4 {[%clk 0:02:59]} 12. Qxb4 {[%clk 0:02:40]}  Nxb4 {[%clk 0:03:00]} 13. Bb1 {[%clk 0:02:39]}  b6 {[%clk 0:03:00]} 14. a3 {[%clk 0:02:38]}  Nc6 {[%clk 0:02:55]} 15. Re1 {[%clk 0:02:33]}  Ba6 {[%clk 0:02:55]} 16. Nf1 {[%clk 0:02:32]}  O-O {[%clk 0:02:53]} 17. Bd2 {[%clk 0:02:30]}  Rac8 {[%clk 0:02:51]} 18. Bc3 {[%clk 0:02:30]}  Na7 {[%clk 0:02:51]} 19. Ne3 {[%clk 0:02:20]}  Nb5 {[%clk 0:02:51]} 20. Bd3 {[%clk 0:02:20]}  Nb8 {[%clk 0:02:51]} 21. Rec1 {[%clk 0:01:51]}  Nxc3 {[%clk 0:02:08]} 22. Bxa6 {[%clk 0:01:49]}  Nxa6 {[%clk 0:02:09]} 23. Rxc3 {[%clk 0:01:49]}  Rxc3 {[%clk 0:02:08]} 24. bxc3 {[%clk 0:01:50]}  b5 {[%clk 0:02:01]} 25. Rb1 {[%clk 0:01:45]}  Rb8 {[%clk 0:02:00]} 26. Nc2 {[%clk 0:01:44]}  h6 {[%clk 0:01:51]} 27. Nd2 {[%clk 0:01:42]}  Rc8 {[%clk 0:01:45]} 28. Rxb5 {[%clk 0:01:39]}  Rxc3 {[%clk 0:01:44]} 29. Ne3 {[%clk 0:01:16]}  Rxa3 {[%clk 0:01:44]} 30. Rb6 {[%clk 0:01:10]}  Nb4 {[%clk 0:01:43]} 31. Rb8+ {[%clk 0:01:09]}  Kh7 {[%clk 0:01:31]} 32. Ra8 {[%clk 0:00:58]}  Bg5 {[%clk 0:01:30]} 33. Nf3 {[%clk 0:00:52]}  Bxe3 {[%clk 0:01:28]} 34. fxe3 {[%clk 0:00:52]}  Ra1+ {[%clk 0:01:23]} 35. Kh2 {[%clk 0:00:51]}  a4 {[%clk 0:01:23]} 36. e4 {[%clk 0:00:41]}  a3 {[%clk 0:01:22]} 37. exd5 {[%clk 0:00:40]}  Nxd5 {[%clk 0:01:15]} 38. Nd2 {[%clk 0:00:39]}  Nb4 {[%clk 0:01:05]} 39. Nc4 {[%clk 0:00:36]}  a2 {[%clk 0:01:04]} 40. Nb6 {[%clk 0:00:33]}  Rd1 {[%clk 0:01:00]} 41. Nd7 {[%clk 0:00:31]}  h5 {[%clk 0:00:52]} 42. Nf8+ {[%clk 0:00:28]}  Kh6 {[%clk 0:00:52]} 43. Nd7 {[%clk 0:00:21]}  a1=Q {[%clk 0:00:50]} 44. Rh8+ {[%clk 0:00:20]}  Kg5 {[%clk 0:00:50]} 45. Nf8 {[%clk 0:00:09]}  Rh1+ {[%clk 0:00:49]} 0-1


[Site "https://www.chess.com"]

[Event "Titled Tuesday Blitz July 4 Late 2023"]
[White "Skatchkov, Valery"]
[Black "Hamitevici, Vladimir"]
[WhiteFideId "24195812"]
[BlackFideId "13902393"]
[WhiteElo "2630"]
[BlackElo "2504"]
[Result "1-0"]
[Round "4"]
[TimeControl "180+2"]
[Date "2023.07.04"]
[WhiteClock "0:01:30"]
[BlackClock "0:00:01"]
[Board "66"]

1. d4 {[%clk 0:02:59]}  Nf6 {[%clk 0:02:58]} 2. c4 {[%clk 0:02:59]}  b6 {[%clk 0:02:58]} 3. Nf3 {[%clk 0:02:55]}  Bb7 {[%clk 0:02:58]} 4. g3 {[%clk 0:02:56]}  g6 {[%clk 0:02:58]} 5. Bg2 {[%clk 0:02:55]}  Bg7 {[%clk 0:02:59]} 6. O-O {[%clk 0:02:56]}  O-O {[%clk 0:02:59]} 7. d5 {[%clk 0:02:57]}  Ne4 {[%clk 0:02:50]} 8. Qc2 {[%clk 0:02:56]}  f5 {[%clk 0:02:42]} 9. Nbd2 {[%clk 0:02:56]}  Nxd2 {[%clk 0:02:34]} 10. Bxd2 {[%clk 0:02:56]}  Na6 {[%clk 0:02:34]} 11. Bc3 {[%clk 0:02:56]}  Nc5 {[%clk 0:02:27]} 12. Rad1 {[%clk 0:02:56]}  a5 {[%clk 0:02:24]} 13. Bxg7 {[%clk 0:02:55]}  Kxg7 {[%clk 0:02:25]} 14. Nd4 {[%clk 0:02:47]}  Qe8 {[%clk 0:02:12]} 15. h4 {[%clk 0:02:30]}  Qf7 {[%clk 0:02:02]} 16. b3 {[%clk 0:02:28]}  Qf6 {[%clk 0:01:53]} 17. a3 {[%clk 0:02:27]}  e5 {[%clk 0:01:38]} 18. Nb5 {[%clk 0:02:19]}  Na6 {[%clk 0:01:31]} 19. e3 {[%clk 0:02:10]}  d6 {[%clk 0:01:26]} 20. Qd2 {[%clk 0:02:05]}  Bc8 {[%clk 0:01:18]} 21. b4 {[%clk 0:02:05]}  axb4 {[%clk 0:01:19]} 22. axb4 {[%clk 0:02:06]}  Bd7 {[%clk 0:01:20]} 23. Na3 {[%clk 0:02:05]}  f4 {[%clk 0:01:10]} 24. exf4 {[%clk 0:02:05]}  exf4 {[%clk 0:01:11]} 25. Rfe1 {[%clk 0:02:01]}  f3 {[%clk 0:00:51]} 26. Bf1 {[%clk 0:02:01]}  Rae8 {[%clk 0:00:52]} 27. Nc2 {[%clk 0:02:01]}  Ba4 {[%clk 0:00:39]} 28. c5 {[%clk 0:01:53]}  Bxc2 {[%clk 0:00:35]} 29. Bxa6 {[%clk 0:01:47]}  Bxd1 {[%clk 0:00:33]} 30. Rxd1 {[%clk 0:01:47]}  bxc5 {[%clk 0:00:31]} 31. bxc5 {[%clk 0:01:48]}  dxc5 {[%clk 0:00:28]} 32. Bb5 {[%clk 0:01:48]}  Re4 {[%clk 0:00:24]} 33. Qc2 {[%clk 0:01:46]}  Qe7 {[%clk 0:00:20]} 34. Kh2 {[%clk 0:01:45]}  Re2 {[%clk 0:00:17]} 35. Qc3+ {[%clk 0:01:43]}  Kg8 {[%clk 0:00:12]} 36. Kg1 {[%clk 0:01:35]}  Re8 {[%clk 0:00:06]} 37. d6 {[%clk 0:01:28]}  Re1+ {[%clk 0:00:05]} 38. Kh2 {[%clk 0:01:29]}  cxd6 {[%clk 0:00:03]} 39. Bc4+ {[%clk 0:01:29]}  Re6 {[%clk 0:00:03]} 40. Re1 {[%clk 0:01:29]}  Qf7 {[%clk 0:00:02]} 41. Qb3 {[%clk 0:01:29]}  d5 {[%clk 0:00:02]} 42. Bxd5 {[%clk 0:01:29]}  Rxe1 {[%clk 0:00:03]} 43. Bxf7+ {[%clk 0:01:29]}  Kg7 {[%clk 0:00:01]} 44. Bxe8 {[%clk 0:01:30]} 1-0


[Site "https://www.chess.com"]

[Event "Titled Tuesday Blitz July 4 Late 2023"]
[White "Janaszak, Dawid"]
[Black "Barski, Radoslaw"]
[WhiteFideId "1119206"]
[BlackFideId "1131710"]
[WhiteElo "2606"]
[BlackElo "2483"]
[Result "0-1"]
[Round "4"]
[TimeControl "180+2"]
[Date "2023.07.04"]
[WhiteClock "0:00:18"]
[BlackClock "0:00:47"]
[Board "69"]

1. e4 {[%clk 0:03:00]}  e5 {[%clk 0:02:58]} 2. Nf3 {[%clk 0:03:00]}  Nc6 {[%clk 0:02:58]} 3. d4 {[%clk 0:03:00]}  exd4 {[%clk 0:02:58]} 4. Nxd4 {[%clk 0:03:01]}  Bc5 {[%clk 0:02:58]} 5. Nb3 {[%clk 0:03:01]}  Bb6 {[%clk 0:02:58]} 6. Nc3 {[%clk 0:03:01]}  d6 {[%clk 0:02:58]} 7. Qe2 {[%clk 0:02:59]}  Nge7 {[%clk 0:02:58]} 8. Be3 {[%clk 0:02:57]}  O-O {[%clk 0:02:59]} 9. O-O-O {[%clk 0:02:57]}  f5 {[%clk 0:02:58]} 10. f4 {[%clk 0:02:36]}  fxe4 {[%clk 0:02:44]} 11. Nxe4 {[%clk 0:02:33]}  Nf5 {[%clk 0:02:44]} 12. Bxb6 {[%clk 0:02:16]}  axb6 {[%clk 0:02:44]} 13. Kb1 {[%clk 0:02:14]}  Kh8 {[%clk 0:02:31]} 14. g4 {[%clk 0:02:12]}  Nfe7 {[%clk 0:02:14]} 15. f5 {[%clk 0:02:11]}  Ng8 {[%clk 0:02:12]} 16. h4 {[%clk 0:02:05]}  Ne5 {[%clk 0:02:08]} 17. Bh3 {[%clk 0:01:59]}  Qe8 {[%clk 0:01:59]} 18. Nc3 {[%clk 0:01:43]}  Bd7 {[%clk 0:01:51]} 19. Rhf1 {[%clk 0:01:38]}  b5 {[%clk 0:01:40]} 20. g5 {[%clk 0:01:38]}  b4 {[%clk 0:01:26]} 21. Nd5 {[%clk 0:01:38]}  Bb5 {[%clk 0:01:27]} 22. Qh2 {[%clk 0:01:01]}  Bxf1 {[%clk 0:01:24]} 23. Nxc7 {[%clk 0:01:01]}  Qa4 {[%clk 0:01:16]} 24. Nxa8 {[%clk 0:01:00]}  Bxh3 {[%clk 0:01:13]} 25. Nb6 {[%clk 0:00:48]}  Qc6 {[%clk 0:01:09]} 26. Qxh3 {[%clk 0:00:43]}  Qxb6 {[%clk 0:01:08]} 27. f6 {[%clk 0:00:42]}  gxf6 {[%clk 0:01:05]} 28. Qe6 {[%clk 0:00:43]}  Qc6 {[%clk 0:00:50]} 29. gxf6 {[%clk 0:00:35]}  Rxf6 {[%clk 0:00:48]} 30. Qh3 {[%clk 0:00:18]}  Qf3 {[%clk 0:00:47]} 0-1


[Site "https://www.chess.com"]

[Event "Titled Tuesday Blitz July 4 Late 2023"]
[White "Grinev, Valeriy"]
[Black "Taboas Rodriguez, Daniel"]
[WhiteFideId "14117517"]
[BlackFideId "2208466"]
[WhiteElo "2602"]
[BlackElo "2457"]
[Result "0-1"]
[Round "4"]
[TimeControl "180+2"]
[Date "2023.07.04"]
[WhiteClock "0:00:40"]
[BlackClock "0:01:29"]
[Board "71"]

1. e4 {[%clk 0:03:00]}  e5 {[%clk 0:02:59]} 2. Nc3 {[%clk 0:03:01]}  Nf6 {[%clk 0:02:59]} 3. Nf3 {[%clk 0:03:02]}  Nc6 {[%clk 0:02:59]} 4. Bc4 {[%clk 0:03:01]}  Nxe4 {[%clk 0:02:58]} 5. Nxe4 {[%clk 0:02:55]}  d5 {[%clk 0:02:58]} 6. Bd3 {[%clk 0:02:55]}  dxe4 {[%clk 0:02:56]} 7. Bxe4 {[%clk 0:02:56]}  Bd6 {[%clk 0:02:56]} 8. O-O {[%clk 0:02:55]}  O-O {[%clk 0:02:56]} 9. d3 {[%clk 0:02:53]}  Bg4 {[%clk 0:02:55]} 10. h3 {[%clk 0:02:52]}  Bh5 {[%clk 0:02:53]} 11. Qe1 {[%clk 0:02:47]}  Qe7 {[%clk 0:02:36]} 12. Bg5 {[%clk 0:02:29]}  f6 {[%clk 0:02:35]} 13. Be3 {[%clk 0:02:28]}  f5 {[%clk 0:02:31]} 14. Bxc6 {[%clk 0:02:25]}  bxc6 {[%clk 0:02:31]} 15. Nh2 {[%clk 0:02:19]}  f4 {[%clk 0:02:27]} 16. Bd2 {[%clk 0:02:18]}  f3 {[%clk 0:02:27]} 17. g4 {[%clk 0:02:14]}  Qh4 {[%clk 0:02:21]} 18. Kh1 {[%clk 0:01:44]}  Qxh3 {[%clk 0:02:16]} 19. Rg1 {[%clk 0:01:42]}  e4 {[%clk 0:02:16]} 20. Rg3 {[%clk 0:01:31]}  Bxg3 {[%clk 0:02:16]} 21. Qg1 {[%clk 0:01:31]}  Bxh2 {[%clk 0:02:05]} 22. Qxh2 {[%clk 0:01:30]}  Bxg4 {[%clk 0:02:03]} 23. Rg1 {[%clk 0:01:28]}  exd3 {[%clk 0:01:57]} 24. cxd3 {[%clk 0:01:26]}  Rae8 {[%clk 0:01:57]} 25. Bc3 {[%clk 0:01:26]}  Qxh2+ {[%clk 0:01:55]} 26. Kxh2 {[%clk 0:01:25]}  h5 {[%clk 0:01:56]} 27. Kg3 {[%clk 0:01:25]}  Re2 {[%clk 0:01:56]} 28. a4 {[%clk 0:01:19]}  Rd8 {[%clk 0:01:54]} 29. d4 {[%clk 0:01:18]}  Kf7 {[%clk 0:01:53]} 30. a5 {[%clk 0:01:17]}  g5 {[%clk 0:01:52]} 31. Ra1 {[%clk 0:01:17]}  Kg6 {[%clk 0:01:47]} 32. a6 {[%clk 0:01:17]}  Rc8 {[%clk 0:01:44]} 33. Ra5 {[%clk 0:01:16]}  Rce8 {[%clk 0:01:40]} 34. d5 {[%clk 0:01:16]}  cxd5 {[%clk 0:01:39]} 35. Rxd5 {[%clk 0:01:16]}  R2e4 {[%clk 0:01:35]} 36. Rc5 {[%clk 0:01:15]}  h4+ {[%clk 0:01:35]} 37. Kh2 {[%clk 0:01:15]}  R8e7 {[%clk 0:01:36]} 38. Bd2 {[%clk 0:01:12]}  R4e5 {[%clk 0:01:35]} 39. Rc6+ {[%clk 0:01:11]}  R5e6 {[%clk 0:01:35]} 40. Rc5 {[%clk 0:01:11]}  Bf5 {[%clk 0:01:36]} 41. Be3 {[%clk 0:01:10]}  Rxa6 {[%clk 0:01:35]} 42. b4 {[%clk 0:01:05]}  g4 {[%clk 0:01:34]} 43. b5 {[%clk 0:00:59]}  Ra2 {[%clk 0:01:34]} 44. Rc6+ {[%clk 0:00:59]}  Re6 {[%clk 0:01:31]} 45. Rc3 {[%clk 0:00:45]}  g3+ {[%clk 0:01:28]} 46. Kg1 {[%clk 0:00:42]}  Ra1+ {[%clk 0:01:28]} 47. Rc1 {[%clk 0:00:40]}  Rxc1+ {[%clk 0:01:28]} 48. Bxc1 {[%clk 0:00:40]}  Re1# {[%clk 0:01:29]} 0-1


[Site "https://www.chess.com"]

[Event "Titled Tuesday Blitz July 4 Late 2023"]
[White "Vdovin, Vadim"]
[Black "Philippe, Guillaume"]
[WhiteFideId "24107158"]
[BlackFideId "36048763"]
[WhiteElo "2600"]
[BlackElo "2431"]
[Result "0-1"]
[Round "4"]
[TimeControl "180+2"]
[Date "2023.07.04"]
[WhiteClock "0:00:04"]
[BlackClock "0:00:17"]
[Board "73"]

1. e4 {[%clk 0:02:57]}  e5 {[%clk 0:03:00]} 2. Nf3 {[%clk 0:02:57]}  Nc6 {[%clk 0:03:01]} 3. Bb5 {[%clk 0:02:56]}  a6 {[%clk 0:03:01]} 4. Ba4 {[%clk 0:02:57]}  f5 {[%clk 0:03:01]} 5. d4 {[%clk 0:02:56]}  exd4 {[%clk 0:03:02]} 6. e5 {[%clk 0:02:54]}  b5 {[%clk 0:03:01]} 7. Bb3 {[%clk 0:02:53]}  Bb7 {[%clk 0:03:01]} 8. a4 {[%clk 0:02:42]}  Bc5 {[%clk 0:02:56]} 9. c3 {[%clk 0:02:37]}  Na5 {[%clk 0:02:50]} 10. Bxg8 {[%clk 0:02:27]}  Rxg8 {[%clk 0:02:51]} 11. b4 {[%clk 0:02:27]}  dxc3 {[%clk 0:02:37]} 12. bxc5 {[%clk 0:02:09]}  b4 {[%clk 0:02:37]} 13. Bg5 {[%clk 0:01:57]}  Bxf3 {[%clk 0:02:06]} 14. Qxf3 {[%clk 0:01:56]}  Qxg5 {[%clk 0:02:07]} 15. Qxa8+ {[%clk 0:01:56]}  Ke7 {[%clk 0:02:07]} 16. Qd5 {[%clk 0:01:28]}  Qc1+ {[%clk 0:01:57]} 17. Qd1 {[%clk 0:01:24]}  Qb2 {[%clk 0:01:56]} 18. O-O {[%clk 0:00:45]}  Qxa1 {[%clk 0:01:51]} 19. Qd4 {[%clk 0:00:26]}  Nc6 {[%clk 0:00:59]} 20. Qh4+ {[%clk 0:00:26]}  Kf8 {[%clk 0:00:58]} 21. e6 {[%clk 0:00:26]}  dxe6 {[%clk 0:00:48]} 22. Nd2 {[%clk 0:00:26]}  Qxa4 {[%clk 0:00:34]} 23. Nf3 {[%clk 0:00:27]}  h6 {[%clk 0:00:30]} 24. Qc4 {[%clk 0:00:25]}  Kf7 {[%clk 0:00:30]} 25. Re1 {[%clk 0:00:24]}  Re8 {[%clk 0:00:30]} 26. g4 {[%clk 0:00:22]}  Qb5 {[%clk 0:00:26]} 27. Qf4 {[%clk 0:00:21]}  g5 {[%clk 0:00:23]} 28. Qxc7+ {[%clk 0:00:19]}  Re7 {[%clk 0:00:20]} 29. Qxc6 {[%clk 0:00:19]}  Qxc6 {[%clk 0:00:19]} 30. Ne5+ {[%clk 0:00:20]}  Kf6 {[%clk 0:00:20]} 31. Nxc6 {[%clk 0:00:21]}  b3 {[%clk 0:00:18]} 32. Nd4 {[%clk 0:00:12]}  b2 {[%clk 0:00:17]} 33. c6 {[%clk 0:00:11]}  e5 {[%clk 0:00:17]} 34. Nc2 {[%clk 0:00:06]}  Rc7 {[%clk 0:00:16]} 35. Kf1 {[%clk 0:00:06]}  Rxc6 {[%clk 0:00:16]} 36. Ke2 {[%clk 0:00:03]}  Rd6 {[%clk 0:00:17]} 37. Ke3 {[%clk 0:00:02]}  Rd2 {[%clk 0:00:17]} 38. Na3 {[%clk 0:00:03]}  f4+ {[%clk 0:00:17]} 39. Ke4 {[%clk 0:00:02]}  c2 {[%clk 0:00:15]} 40. Nxc2 {[%clk 0:00:02]}  Rxc2 {[%clk 0:00:16]} 41. Rb1 {[%clk 0:00:03]}  Rc4+ {[%clk 0:00:16]} 42. Kd3 {[%clk 0:00:03]}  Rb4 {[%clk 0:00:16]} 43. Kc3 {[%clk 0:00:03]}  a5 {[%clk 0:00:17]} 44. f3 {[%clk 0:00:03]}  Ke6 {[%clk 0:00:16]} 45. Kc2 {[%clk 0:00:03]}  Kd5 {[%clk 0:00:15]} 46. Kc3 {[%clk 0:00:04]}  Kc5 {[%clk 0:00:15]} 47. Kc2 {[%clk 0:00:04]}  a4 {[%clk 0:00:16]} 48. h3 {[%clk 0:00:05]}  a3 {[%clk 0:00:16]} 49. Re1 {[%clk 0:00:05]}  a2 {[%clk 0:00:16]} 50. Rxe5+ {[%clk 0:00:04]}  Kd6 {[%clk 0:00:17]} 0-1


[Site "https://www.chess.com"]

[Event "Titled Tuesday Blitz July 4 Late 2023"]
[White "Ezat, Mohamed"]
[Black "Federzoni, Enzo"]
[WhiteFideId "10600906"]
[BlackFideId "2173301"]
[WhiteElo "2595"]
[BlackElo "2429"]
[Result "1-0"]
[Round "4"]
[TimeControl "180+2"]
[Date "2023.07.04"]
[WhiteClock "0:00:43"]
[BlackClock "0:00:35"]
[Board "74"]

1. d4 {[%clk 0:03:00]}  Nf6 {[%clk 0:02:59]} 2. c4 {[%clk 0:03:00]}  g6 {[%clk 0:02:55]} 3. Nc3 {[%clk 0:02:58]}  Bg7 {[%clk 0:02:55]} 4. e4 {[%clk 0:02:57]}  d6 {[%clk 0:02:56]} 5. Be2 {[%clk 0:02:57]}  O-O {[%clk 0:02:56]} 6. Bg5 {[%clk 0:02:57]}  c5 {[%clk 0:02:54]} 7. d5 {[%clk 0:02:57]}  h6 {[%clk 0:02:43]} 8. Bf4 {[%clk 0:02:57]}  e6 {[%clk 0:02:33]} 9. Qd2 {[%clk 0:02:54]}  exd5 {[%clk 0:02:25]} 10. exd5 {[%clk 0:02:55]}  g5 {[%clk 0:02:21]} 11. Be3 {[%clk 0:02:54]}  Re8 {[%clk 0:02:17]} 12. h4 {[%clk 0:02:53]}  Bf5 {[%clk 0:02:01]} 13. hxg5 {[%clk 0:02:52]}  hxg5 {[%clk 0:02:02]} 14. Bxg5 {[%clk 0:02:49]}  Qe7 {[%clk 0:02:00]} 15. Nf3 {[%clk 0:02:29]}  Nbd7 {[%clk 0:01:52]} 16. Bh6 {[%clk 0:02:10]}  Qf8 {[%clk 0:01:51]} 17. Bxg7 {[%clk 0:01:59]}  Qxg7 {[%clk 0:01:52]} 18. O-O-O {[%clk 0:01:57]}  a6 {[%clk 0:01:42]} 19. Bd3 {[%clk 0:01:45]}  Bg6 {[%clk 0:01:39]} 20. Bxg6 {[%clk 0:01:45]}  fxg6 {[%clk 0:01:37]} 21. Ng5 {[%clk 0:01:45]}  Nf8 {[%clk 0:01:35]} 22. Qf4 {[%clk 0:01:40]}  Re5 {[%clk 0:01:30]} 23. Nce4 {[%clk 0:01:35]}  Nxe4 {[%clk 0:01:25]} 24. Nxe4 {[%clk 0:01:35]}  Rf5 {[%clk 0:01:16]} 25. Qxd6 {[%clk 0:01:34]}  Re8 {[%clk 0:01:14]} 26. f3 {[%clk 0:01:33]}  b5 {[%clk 0:00:57]} 27. Rh3 {[%clk 0:01:28]}  bxc4 {[%clk 0:00:49]} 28. Rdh1 {[%clk 0:01:27]}  Rxe4 {[%clk 0:00:39]} 29. Rh8+ {[%clk 0:01:05]}  Kf7 {[%clk 0:00:39]} 30. fxe4 {[%clk 0:01:00]}  Rf2 {[%clk 0:00:38]} 31. Rxf8+ {[%clk 0:00:44]}  Qxf8 {[%clk 0:00:39]} 32. Rh7+ {[%clk 0:00:44]}  Ke8 {[%clk 0:00:35]} 33. Qd7# {[%clk 0:00:43]} 1-0


[Site "https://www.chess.com"]